Workbook

Sheet Feuil1
B1: Par macro: A chaque nouvelle vente
C2: 1 | D2: création d'une ligne de vente
C3: 2 | D3: insertion en zone d'insertion d'un tableau de ventilation des coûts d'achat
C4: 3 | D4: création automatique des formules
C5: 4 | D5: FORMULE QUI ME POSE PROBLEME
D6: comment introduire dans la formule l'addition de la nouvelle zone crée après l'insertion
D7: elle devra être ensuite copiée dans chaque cellule de la zone L22 à L25
A8: SUIVI GENERAL | H8: 2018 | I8: Janvier | J8: Février | K8: Mars | L8: Avril
H10: C.A | I10: =I13+I19 -> 6,000.00 € | J10: =J13+J19 -> 15,750.00 € | K10: 5,250.00 € | L10: 0
H11: CUMUL | I11: =+I10 -> 6,000.00 € | J11: =+J10+I11 -> 21,750.00 € | K11: =+K10+J11 -> 27,000.00 € | L11: 27,000.00 €
H13: GLOBALISATION | I13: =SUM(I15:I17) -> 9800 | J13: =SUM(J15:J17) -> 24500 | K13: 8750 | L13: 0
C14: =IF($G1=0,0,$F1) -> 0 | G14: ON/OFF
B15: 1 | C15: VENTES | D15: 1,000.00 | E15: 9.8 | F15: =E15*D15 -> 9,800.00 | G15: 1 | H15: Ventilation VENTES | I15: =IF($G15=0,0,$F15) -> 9800
B16: 2 | C16: VENTES | D16: 2,500.00 | E16: 9.8 | F16: =E16*D16 -> 24,500.00 | G16: 1 | H16: Ventilation VENTES | J16: =IF($G16=0,0,$F16) -> 24500
B17: 3 | C17: VENTES | D17: 875.00 | E17: 10 | F17: 8,750.00 | G17: 1 | H17: Ventilation VENTES | K17: =IF($G17=0,0,$F17) -> 8750
C19: ACHAT | H19: GLOBALISATION | I19: =-SUM(I22:I25) -> -3800.00 | J19: =-SUM(J22:J25) -> -8750.00 | K19: =-SUM(K22:K25) -> -3500.00 | L19: =-SUM(L22:L25) -> 0.00
A21: =ROW(A21) -> 21 | C21: VENTILATION DES COÛTS
E22: GLOBALISATION | F22: ACHATS | I22: =+I28+I33+I38 -> 2350.00 | J22: =+J28+J33+J38 -> 5125.00 | K22: =+K28+K33+K38 -> 2231.25 | L22: =+L28+L33+L38 -> 0.00
F23: Fabrication | I23: =+I29+I34+I39 -> 770.00 | J23: =+J29+J34+J39 -> 1925.00 | K23: =+K29+K34+K39 -> 673.75 | L23: =+L29+L34+L39 -> 0.00
F24: Emballage | I24: =+I30+I35+I40 -> 580.00 | J24: =+J30+J35+J40 -> 1450.00 | K24: =+K30+K35+K40 -> 507.50 | L24: =+L30+L35+L40 -> 0.00
F25: Envoi | I25: =+I31+I36+I41 -> 100.00 | J25: =+J31+J36+J41 -> 250.00 | K25: =+K31+K36+K41 -> 87.50 | L25: =+L31+L36+L41 -> 0.00
C26: Zone d'insertion
B27: 3 | C27: 4.00 € | D27: Nb Pièces | E27: PxACH | F27: Tot | H27: Contrôle si vente | I27: =IF(I17=0,0,I17) -> 0 | J27: =IF(J17=0,0,J17) -> 0 | K27: =IF(K17=0,0,K17) -> 8750 | L27: =IF(L17=0,0,L17) -> 0
C28: Achat | D28: =+D17 -> 875 | E28: =C27-E29-E30-E31 -> 2.55 € | F28: =E28*D28 -> 2,231.25 € | G28: =+G17 -> 1 | H28: Ventilation des coûts | I28: =IF(I27=0,0,IF($G28=0,0,$F28)) -> 0.00 | J28: =IF(J27=0,0,IF($G28=0,0,$F28)) -> 0.00 | K28: =IF(K27=0,0,IF($G28=0,0,$F28)) -> 2231.25 | L28: =IF(L27=0,0,IF($G28=0,0,$F28)) -> 0.00
C29: Fabrication | D29: =+D28 -> 875 | E29: 0.77 € | F29: =E29*D29 -> 673.75 € | G29: =+G28 -> 1 | I29: =IF(I27=0,0,IF($G29=0,0,$F29)) -> 0.00 | J29: =IF(J27=0,0,IF($G29=0,0,$F29)) -> 0.00 | K29: 673.75 | L29: =IF(L27=0,0,IF($G29=0,0,$F29)) -> 0.00
C30: Emballage | D30: =+D29 -> 875 | E30: 0.58 € | F30: 507.50 € | G30: =+G29 -> 1 | I30: =IF(I27=0,0,IF($G30=0,0,$F30)) -> 0.00 | J30: =IF(J27=0,0,IF($G30=0,0,$F30)) -> 0.00 | K30: 507.50 | L30: =IF(L27=0,0,IF($G30=0,0,$F30)) -> 0.00
C31: Envoi | D31: 875 | E31: 0.10 € | F31: 87.50 € | G31: 1 | I31: =IF(I27=0,0,IF($G31=0,0,$F31)) -> 0.00 | J31: =IF(J27=0,0,IF($G31=0,0,$F31)) -> 0.00 | K31: 87.50 | L31: =IF(L27=0,0,IF($G31=0,0,$F31)) -> 0.00
B32: 2 | C32: 3.50 € | D32: Nb Pièces | E32: PxACH | F32: Tot | H32: Contrôle si vente | I32: =IF(I16=0,0,I16) -> 0 | J32: =IF(J16=0,0,J16) -> 24500 | K32: =IF(K16=0,0,K16) -> 0 | L32: =IF(L16=0,0,L16) -> 0
C33: Achat | D33: =+D16 -> 2500 | E33: =C32-E34-E35-E36 -> 2.05 € | F33: =E33*D33 -> 5,125.00 € | G33: =+G16 -> 1 | H33: Ventilation des coûts | I33: =IF(I32=0,0,IF($G33=0,0,$F33)) -> 0.00 | J33: =IF(J32=0,0,IF($G33=0,0,$F33)) -> 5125.00 | K33: =IF(K32=0,0,IF($G33=0,0,$F33)) -> 0.00 | L33: =IF(L32=0,0,IF($G33=0,0,$F33)) -> 0.00
C34: Fabrication | D34: =+D33 -> 2500 | E34: 0.77 € | F34: =E34*D34 -> 1,925.00 € | G34: =+G33 -> 1 | I34: =IF(I32=0,0,IF($G34=0,0,$F34)) -> 0.00 | J34: =IF(J32=0,0,IF($G34=0,0,$F34)) -> 1925.00 | K34: 0.00 | L34: =IF(L32=0,0,IF($G34=0,0,$F34)) -> 0.00
C35: Emballage | D35: =+D34 -> 2500 | E35: 0.58 € | F35: 1,450.00 € | G35: =+G34 -> 1 | I35: =IF(I32=0,0,IF($G35=0,0,$F35)) -> 0.00 | J35: =IF(J32=0,0,IF($G35=0,0,$F35)) -> 1450.00 | K35: 0.00 | L35: =IF(L32=0,0,IF($G35=0,0,$F35)) -> 0.00
C36: Envoi | D36: 2500 | E36: 0.10 € | F36: 250.00 € | G36: 1 | I36: =IF(I32=0,0,IF($G36=0,0,$F36)) -> 0.00 | J36: =IF(J32=0,0,IF($G36=0,0,$F36)) -> 250.00 | K36: 0.00 | L36: =IF(L32=0,0,IF($G36=0,0,$F36)) -> 0.00
B37: 1 | C37: 3.80 € | D37: Nb Pièces | E37: PxACH | F37: Tot | H37: Contrôle si vente | I37: =IF(I15=0,0,I15) -> 9800 | J37: =IF(J15=0,0,J15) -> 0 | K37: =IF(K15=0,0,K15) -> 0 | L37: =IF(L15=0,0,L15) -> 0
C38: Achat | D38: =+D15 -> 1000 | E38: =C37-E39-E40-E41 -> 2.35 € | F38: =E38*D38 -> 2,350.00 € | G38: =+G15 -> 1 | H38: Ventilation des coûts | I38: =IF(I37=0,0,IF($G38=0,0,$F38)) -> 2350.00 | J38: =IF(J37=0,0,IF($G38=0,0,$F38)) -> 0.00 | K38: =IF(K37=0,0,IF($G38=0,0,$F38)) -> 0.00 | L38: =IF(L37=0,0,IF($G38=0,0,$F38)) -> 0.00
C39: Fabrication | D39: =+D38 -> 1000 | E39: 0.77 € | F39: =E39*D39 -> 770.00 € | G39: =+G38 -> 1 | I39: =IF(I37=0,0,IF($G39=0,0,$F39)) -> 770.00 | J39: =IF(J37=0,0,IF($G39=0,0,$F39)) -> 0.00 | K39: 0.00 | L39: =IF(L37=0,0,IF($G39=0,0,$F39)) -> 0.00
C40: Emballage | D40: =+D39 -> 1000 | E40: 0.58 € | F40: 580.00 € | G40: =+G39 -> 1 | I40: =IF(I37=0,0,IF($G40=0,0,$F40)) -> 580.00 | J40: =IF(J37=0,0,IF($G40=0,0,$F40)) -> 0.00 | K40: 0.00 | L40: =IF(L37=0,0,IF($G40=0,0,$F40)) -> 0.00
C41: Envoi | D41: 1000 | E41: 0.10 € | F41: 100.00 € | G41: 1 | I41: =IF(I37=0,0,IF($G41=0,0,$F41)) -> 100.00 | J41: =IF(J37=0,0,IF($G41=0,0,$F41)) -> 0.00 | K41: 0.00 | L41: =IF(L37=0,0,IF($G41=0,0,$F41)) -> 0.00
